[Event "DFMMLV 2019"]
[Site "Braunfels"]
[Date "2019.06.22"]
[Round "4.40"]
[White "Krotsch, Maxi"]
[Black "Boos-Guckes, Astrid"]
[Result "1/2-1/2"]
[ECO "C02"]
[WhiteElo "942"]
[BlackElo "1329"]
[Annotator "NA"]
[PlyCount "106"]
[EventDate "2019.06.20"]
[EventType "team-tourn"]
[EventCountry "GER"]
[SourceTitle "playchess.com"]
[Source "ChessBase"]
[SourceQuality "1"]
[WhiteTeam "Wuerttemberg 2"]
[BlackTeam "Rheinland Pfalz"]
[TimeControl "40/5400+30:1800+30"]

1. e4 {[%emt 0:00:00]} e6 {[%emt 0:00:05]} 2. d4 {[%emt 0:00:00]} d5 {[%emt 0:00:23]} 3. e5 {[%emt 0:00:12]} c5 {[%emt 0:01:03]} 4. c3 {[%emt 0:00:35]} Qb6 {[%emt 0:01:14]} 5. Nf3 {[%emt 0:01:06]} Bd7 {[%emt 0:00:47]} 6. g3 {[%emt 0:01:40]} Bb5 {[%emt 0:01:53]} 7. Bxb5+ {[%emt 0:01:01]} Qxb5 {[%emt 0:00:34]} 8. a4 {[%emt 0:01:25]} Qc6 {[%emt 0:05:38]} 9. O-O {[%emt 0:00:29]} Nd7 {[%emt 0:01:50]} 10. Nbd2 {[%emt 0:04:11]} Ne7 {[%emt 0:03:16]} 11. b3 {[%emt 0:03:44]} Nf5 {[%emt 0:01:33]} 12. Ba3 {[%emt 0:03:23]} Be7 {[%emt 0:01:28]} 13. Rc1 {[%emt 0:01:33]} O-O {[%emt 0:00:47]} 14. b4 {[%emt 0:00:59]} c4 {[%emt 0:01:55]} 15. b5 {[%emt 0:00:22]} Qc7 {[%emt 0:06:26]} 16. Bxe7 {[%emt 0:00:34]} Nxe7 {[%emt 0:00:24]} 17. Qc2 {[%emt 0:00:12]} h6 {[%emt 0:03:18]} 18. g4 {[%emt 0:00:41]} f6 {[%emt 0:12:07]} 19. Rce1 {[%emt 0:01:43]} fxe5 {[%emt 0:12:06]} 20. dxe5 {[%emt 0:00:25]} Rf4 {[%emt 0:03:12]} 21. h3 {[%emt 0:01:46]} Nf8 {[%emt 0:05:22]} 22. Kh2 Nfg6 {[%emt 0:02:21]} 23. Rg1 {[%emt 0:03:39]} Raf8 {[%emt 0:05:10]} 24. Rg3 {[%emt 0:00:50]} Qc5 {[%emt 0:03:26]} 25. Rf1 {[%emt 0:01:08]} Qc7 {[%emt 0:05:06]} 26. Kg2 {[%emt 0:01:40]} Nxe5 {[%emt 0:01:22]} 27. Nxe5 {[%emt 0:00:30]} Qxe5 {[%emt 0:01:32]} 28. Nf3 {[%emt 0:00:16]} Qe4 {[%emt 0:03:00]} 29. Qxe4 {[%emt 0:00:37]} dxe4 {[%emt 0:02:41]} 30. Nd4 {[%emt 0:00:13]} e5 {[%emt 0:01:20]} 31. Ne6 {[%emt 0:00:10]} Ng6 {[%emt 0:03:20]} 32. Nxf8 {[%emt 0:00:27]} Nh4+ {[%emt 0:00:30]} 33. Kh1 {[%emt 0:00:33]} Rxf8 {[%emt 0:02:25]} 34. Re3 {[%emt 0:00:22]} Rf3 {[%emt 0:04:14]} 35. Rxe4 {[%emt 0:01:46]} Rxh3+ {[%emt 0:00:39]} 36. Kg1 {[%emt 0:00:27]} Nf3+ {[%emt 0:02:05]} 37. Kg2 Ng5 {[%emt 0:00:57]} 38. Rxe5 {[%emt 0:00:56]} Rxc3 {[%emt 0:01:24]} 39. Re8+ {[%emt 0:00:31]} Kh7 {[%emt 0:00:16]} 40. Re7 {[%emt 0:00:17]} Kg6 41. Rxb7 Ra3 {[%emt 0:31:44]} 42. Rxa7 {[%emt 0:30:28]} c3 {[%emt 0:00:25]} 43. b6 {[%emt 0:00:16]} c2 {[%emt 0:00:00]} 44. b7 {[%emt 0:00:00]} Rb3 {[%emt 0:00:00]} 45. a5 {[%emt 0:00:00]} Rb1 {[%emt 0:00:00]} 46. Ra6+ Kh7 {[%emt 0:00:00]} 47. Rb6 {[%emt 0:00:00]} Rxf1 {[%emt 0:00:00]} 48. Kxf1 {[%emt 0:00:00]} c1=Q+ 49. Kg2 Qc5 {[%emt 0:00:00]} 50. b8=Q {[%emt 0:00:00]} Qd5+ {[%emt 0:00:00]} 51. Kf1 {[%emt 0:00:00]} Qd1+ {[%emt 0:00:00]} 52. Kg2 Qd5+ {[%emt 0:00:00]} 53. Kg3 {[%emt 0:00:00]} Qd3+ {[%emt 0:00:00] Kh3 Qxh3} 1/2-1/2

[Event "DFMMLV 2019"]
[Site "Braunfels"]
[Date "2019.06.22"]
[Round "4.41"]
[White "Tornay, Haizea"]
[Black "Kushka, Alena"]
[Result "0-1"]
[ECO "B23"]
[WhiteElo "1598"]
[BlackElo "2148"]
[Annotator "NA"]
[PlyCount "48"]
[EventDate "2019.06.20"]
[EventType "team-tourn"]
[EventCountry "GER"]
[SourceTitle "playchess.com"]
[Source "ChessBase"]
[SourceQuality "1"]
[WhiteTeam "Hessen 2"]
[BlackTeam "Hessen 1"]
[TimeControl "40/5400+30:1800+30"]

1. e4 {[%emt 0:00:00]} c5 {[%emt 0:00:00]} 2. Nc3 {[%emt 0:00:00]} Nc6 {[%emt 0:00:00]} 3. f4 {[%emt 0:00:00]} e6 {[%emt 0:01:03]} 4. Nf3 {[%emt 0:01:03]} d5 {[%emt 0:00:38]} 5. Bb5 {[%emt 0:01:08]} d4 {[%emt 0:02:25]} 6. Bxc6+ {[%emt 0:02:45]} bxc6 {[%emt 0:00:14]} 7. Nb1 {[%emt 0:05:13]} Nf6 {[%emt 0:02:25]} 8. d3 {[%emt 0:02:45]} Ba6 {[%emt 0:05:50]} 9. Na3 {[%emt 0:15:33]} c4 {[%emt 0:17:45]} 10. Nxc4 {[%emt 0:03:38]} Bxc4 {[%emt 0:07:56]} 11. dxc4 {[%emt 0:01:05]} Qa5+ {[%emt 0:02:47]} 12. Bd2 {[%emt 0:04:41]} Qb6 {[%emt 0:02:56]} 13. e5 {[%emt 0:16:07]} Ne4 {[%emt 0:00:49]} 14. Qe2 {[%emt 0:04:47]} Nxd2 {[%emt 0:01:54]} 15. Nxd2 {[%emt 0:05:00]} Qxb2 {[%emt 0:10:54]} 16. Nb3 {[%emt 0:02:44]} Bb4+ {[%emt 0:05:52]} 17. Kf2 {[%emt 0:01:28]} O-O {[%emt 0:01:13]} 18. Qd3 {[%emt 0:04:06]} Rad8 {[%emt 0:10:19]} 19. Rhd1 {[%emt 0:05:02]} f6 {[%emt 0:02:01]} 20. exf6 {[%emt 0:05:39]} Rxf6 {[%emt 0:00:07]} 21. Qe4 {[%emt 0:01:33]} d3 {[%emt 0:05:13]} 22. Rdb1 {[%emt 0:06:44]} Qxc2+ {[%emt 0:00:53]} 23. Kg1 {[%emt 0:01:38]} Qe2 {[%emt 0:00:49]} 24. Qxc6 {[%emt 0:00:58]} Bc3 {[%emt 0:01:00]} 0-1

[Event "DFMMLV 2019"]
[Site "Braunfels"]
[Date "2019.06.22"]
[Round "4.42"]
[White "Rieseler, Caroline"]
[Black "Krausse, Vanessa"]
[Result "1-0"]
[ECO "B58"]
[WhiteElo "2111"]
[BlackElo "1645"]
[Annotator "NA"]
[PlyCount "56"]
[EventDate "2019.06.20"]
[EventType "team-tourn"]
[EventCountry "GER"]
[SourceTitle "playchess.com"]
[Source "ChessBase"]
[SourceQuality "1"]
[WhiteTeam "Hessen 1"]
[BlackTeam "Hessen 2"]
[TimeControl "40/5400+30:1800+30"]

1. e4 {[%emt 0:00:00]} c5 {[%emt 0:00:00]} 2. Nf3 {[%emt 0:00:00]} Nc6 {[%emt 0:00:53]} 3. d4 {[%emt 0:00:00]} cxd4 {[%emt 0:00:11]} 4. Nxd4 {[%emt 0:00:00]} d6 {[%emt 0:00:14]} 5. Nc3 {[%emt 0:01:49]} Nf6 {[%emt 0:00:36]} 6. Be2 {[%emt 0:00:48]} g6 {[%emt 0:00:49]} 7. O-O {[%emt 0:00:46]} Bg7 {[%emt 0:00:13]} 8. Nb3 {[%emt 0:00:24]} O-O {[%emt 0:00:49]} 9. Bg5 {[%emt 0:00:28]} a6 {[%emt 0:04:23]} 10. f4 {[%emt 0:00:14]} Bd7 {[%emt 0:02:15]} 11. Bf3 {[%emt 0:03:57]} Rc8 12. Kh1 {[%emt 0:08:54]} b5 {[%emt 0:12:38]} 13. Qe1 {[%emt 0:23:55]} b4 {[%emt 0:21:32]} 14. Nd5 a5 15. c3 {[%emt 0:17:15]} e6 {[%emt 0:05:24]} 16. Ne3 {[%emt 0:01:36]} bxc3 {[%emt 0:00:24]} 17. bxc3 {[%emt 0:00:14]} Ne7 {[%emt 0:02:39]} 18. Qh4 {[%emt 0:04:09]} a4 {[%emt 0:15:10]} 19. Nd2 {[%emt 0:12:55]} Rxc3 {[%emt 0:07:48]} 20. Rae1 {[%emt 0:01:21]} Qb6 {[%emt 0:05:30]} 21. Ndc4 {[%emt 0:05:26]} Qd4 {[%emt 0:05:00]} 22. Rd1 {[%emt 0:00:09]} Rd3 {[%emt 0:00:25]} 23. Rxd3 {[%emt 0:00:13]} Qxd3 {[%emt 0:00:07]} 24. Bxf6 {[%emt 0:00:09]} Bxf6 {[%emt 0:00:09]} 25. Qxf6 {[%emt 0:00:09]} Rb8 {[%emt 0:04:29]} 26. Qa1 {[%emt 0:03:12]} Bb5 27. Rd1 Bxc4 28. Rxd3 Bxd3 1-0

[Event "DFMMLV 2019"]
[Site "Braunfels"]
[Date "2019.06.22"]
[Round "4.42"]
[White "Rieseler, Caroline"]
[Black "Tornay, Haizea"]
[Result "*"]
[ECO "B27"]
[WhiteElo "2111"]
[BlackElo "1598"]
[Annotator "NA"]
[PlyCount "20"]
[EventDate "2019.06.20"]
[EventType "team-tourn"]
[EventCountry "GER"]
[SourceTitle "playchess.com"]
[Source "ChessBase"]
[SourceQuality "1"]
[WhiteTeam "Hessen 1"]
[BlackTeam "Hessen 2"]
[TimeControl "40/5400+30:1800+30"]

1. e4 {[%emt 0:00:00]} c5 {[%emt 0:00:00]} 2. Nf3 {[%emt 0:00:00]} Nc6 {[%emt 0:00:53]} 3. d4 {[%emt 0:00:00]} cxd4 {[%emt 0:00:11]} 4. Nxd4 {[%emt 0:00:00]} d6 {[%emt 0:00:14]} 5. Nc3 {[%emt 0:01:49]} Nf6 {[%emt 0:00:36]} 6. Be2 {[%emt 0:00:48]} g6 {[%emt 0:00:49]} 7. O-O {[%emt 0:00:46]} Bg7 {[%emt 0:00:13]} 8. Nb3 {[%emt 0:00:24]} O-O {[%emt 0:00:49]} 9. Bg5 {[%emt 0:00:28]} a6 {[%emt 0:04:23]} 10. f4 {[%emt 0:00:14]} Bd7 {[%emt 0:02:15]} *

[Event "DFMMLV 2019"]
[Site "Braunfels"]
[Date "2019.06.22"]
[Round "4.43"]
[White "Schardt, Madeleine"]
[Black "Bluebaum, Johanna"]
[Result "0-1"]
[ECO "D00"]
[WhiteElo "1578"]
[BlackElo "2003"]
[Annotator "NA"]
[PlyCount "86"]
[EventDate "2019.06.20"]
[EventType "team-tourn"]
[EventCountry "GER"]
[SourceTitle "playchess.com"]
[Source "ChessBase"]
[SourceQuality "1"]
[WhiteTeam "Hessen 2"]
[BlackTeam "Hessen 1"]
[TimeControl "40/5400+30:1800+30"]

1. d4 {[%emt 0:00:00]} d5 {[%emt 0:00:00]} 2. Bf4 {[%emt 0:00:00]} c5 {[%emt 0:00:28]} 3. c3 {[%emt 0:00:00]} Nc6 {[%emt 0:00:08]} 4. e3 {[%emt 0:00:25]} Bf5 {[%emt 0:01:19]} 5. Nf3 {[%emt 0:02:40]} e6 {[%emt 0:02:03]} 6. Bd3 {[%emt 0:04:51]} Bxd3 {[%emt 0:01:03]} 7. Qxd3 {[%emt 0:00:06]} Nf6 {[%emt 0:00:24]} 8. Nbd2 {[%emt 0:00:32]} Be7 {[%emt 0:00:40]} 9. Ne5 {[%emt 0:05:37]} O-O {[%emt 0:08:36]} 10. Ndf3 {[%emt 0:01:41]} Nh5 {[%emt 0:06:13]} 11. Bg3 {[%emt 0:01:42]} f6 {[%emt 0:01:25]} 12. Nxc6 {[%emt 0:02:16]} bxc6 {[%emt 0:00:08]} 13. Qa6 {[%emt 0:03:45]} Qd7 {[%emt 0:06:31]} 14. Bh4 {[%emt 0:02:12]} g6 {[%emt 0:00:59]} 15. g4 {[%emt 0:03:15]} Ng7 {[%emt 0:00:08]} 16. h3 {[%emt 0:03:08]} Rab8 {[%emt 0:01:38]} 17. Rb1 {[%emt 0:03:27]} Rb6 {[%emt 0:00:36]} 18. Qe2 {[%emt 0:01:05]} c4 {[%emt 0:05:03]} 19. Bg3 {[%emt 0:02:00]} Qb7 {[%emt 0:02:12]} 20. h4 {[%emt 0:02:16]} Qa6 {[%emt 0:02:25]} 21. b4 {[%emt 0:09:24]} Qa3 {[%emt 0:02:39]} 22. Qc2 {[%emt 0:01:21]} Rc8 {[%emt 0:06:40]} 23. g5 {[%emt 0:04:38]} f5 {[%emt 0:01:50]} 24. Ne5 {[%emt 0:02:26]} a5 {[%emt 0:01:25]} 25. Nd7 {[%emt 0:06:16]} Rb5 {[%emt 0:01:27]} 26. O-O {[%emt 0:02:38]} axb4 {[%emt 0:00:26]} 27. cxb4 {[%emt 0:00:18]} Ra8 {[%emt 0:02:59]} 28. Nc5 {[%emt 0:01:43]} Kf7 {[%emt 0:03:22]} 29. Qb2 {[%emt 0:03:35]} Qxb2 {[%emt 0:07:59]} 30. Rxb2 {[%emt 0:00:10]} Bxc5 {[%emt 0:00:51]} 31. dxc5 {[%emt 0:00:07]} f4 {[%emt 0:04:12]} 32. Bxf4 {[%emt 0:02:06]} Nf5 {[%emt 0:01:04]} 33. Be5 {[%emt 0:01:52]} Nxh4 {[%emt 0:01:18]} 34. f4 {[%emt 0:03:50]} Nf5 {[%emt 0:02:36]} 35. Kf2 {[%emt 0:00:55]} Ra3 {[%emt 0:00:52]} 36. Rh1 {[%emt 0:02:02]} Kg8 37. Bd4 {[%emt 0:01:12]} Rb7 {[%emt 0:02:18]} 38. Rc1 {[%emt 0:01:10]} Nxd4 {[%emt 0:05:22]} 39. exd4 {[%emt 0:00:09]} Rf7 {[%emt 0:00:26]} 40. Re2 {[%emt 0:00:57]} Rxf4+ {[%emt 0:00:09]} 41. Ke1 {[%emt 0:30:22]} Kf7 {[%emt 0:32:03]} 42. Rf2 {[%emt 0:00:43]} Rxf2 {[%emt 0:00:18]} 43. Kxf2 {[%emt 0:00:03]} Rxa2+ 0-1

[Event "DFMMLV 2019"]
[Site "Braunfels"]
[Date "2019.06.22"]
[Round "4.44"]
[White "Barpiyeva, Gulsana"]
[Black "Schwegler, Jelena"]
[Result "1-0"]
[ECO "E81"]
[WhiteElo "2018"]
[BlackElo "1511"]
[Annotator "NA"]
[PlyCount "51"]
[EventDate "2019.06.20"]
[EventType "team-tourn"]
[EventCountry "GER"]
[SourceTitle "playchess.com"]
[Source "ChessBase"]
[SourceQuality "1"]
[WhiteTeam "Hessen 1"]
[BlackTeam "Hessen 2"]
[TimeControl "40/5400+30:1800+30"]

1. d4 {[%emt 0:00:00]} Nf6 {[%emt 0:00:00]} 2. c4 {[%emt 0:00:00]} g6 {[%emt 0:00:00]} 3. Nc3 {[%emt 0:00:00]} Bg7 {[%emt 0:00:00]} 4. e4 {[%emt 0:00:00]} d6 {[%emt 0:00:05]} 5. f3 {[%emt 0:00:19]} O-O {[%emt 0:00:45]} 6. Be3 {[%emt 0:00:30]} Nbd7 {[%emt 0:01:05]} 7. Nh3 {[%emt 0:00:30]} c5 {[%emt 0:02:41]} 8. d5 {[%emt 0:00:24]} Ne5 {[%emt 0:07:10]} 9. Nf2 {[%emt 0:01:00]} e6 {[%emt 0:09:52]} 10. Be2 {[%emt 0:07:55]} Qe7 {[%emt 0:03:54]} 11. Qd2 {[%emt 0:00:59]} exd5 {[%emt 0:15:51]} 12. cxd5 {[%emt 0:01:51]} a6 {[%emt 0:02:14]} 13. a4 {[%emt 0:01:26]} Nh5 {[%emt 0:07:08]} 14. f4 {[%emt 0:05:50]} Nd7 {[%emt 0:09:35]} 15. g4 {[%emt 0:00:38]} Nhf6 {[%emt 0:00:50]} 16. h4 {[%emt 0:00:52]} b6 {[%emt 0:02:40]} 17. O-O-O {[%emt 0:04:05]} Bb7 {[%emt 0:07:50]} 18. h5 {[%emt 0:01:51]} b5 {[%emt 0:11:49]} 19. g5 {[%emt 0:04:31]} Ne8 {[%emt 0:00:54]} 20. hxg6 {[%emt 0:01:27]} fxg6 {[%emt 0:00:16]} 21. Bg4 {[%emt 0:02:52]} b4 {[%emt 0:00:31]} 22. Be6+ {[%emt 0:02:34]} Rf7 {[%emt 0:02:22]} 23. Nb1 {[%emt 0:00:45]} Nc7 {[%emt 0:00:42]} 24. Bxf7+ {[%emt 0:00:18]} Qxf7 {[%emt 0:00:07]} 25. Ng4 {[%emt 0:00:52]} Kh8 {[%emt 0:00:46]} 26. Qh2 {[%emt 0:01:45]} 1-0

[Event "DFMMLV 2019"]
[Site "Braunfels"]
[Date "2019.06.22"]
[Round "4.44"]
[White "Lukas, Anne"]
[Black "Schwegler, Jelena"]
[Result "*"]
[ECO "E81"]
[WhiteElo "1842"]
[BlackElo "1511"]
[Annotator "NA"]
[PlyCount "35"]
[EventDate "2019.06.20"]
[EventType "team-tourn"]
[EventCountry "GER"]
[SourceTitle "playchess.com"]
[Source "ChessBase"]
[SourceQuality "1"]
[WhiteTeam "Hessen 1"]
[BlackTeam "Hessen 2"]
[TimeControl "40/5400+30:1800+30"]

1. d4 {[%emt 0:00:00]} Nf6 {[%emt 0:00:00]} 2. c4 {[%emt 0:00:00]} g6 {[%emt 0:00:00]} 3. Nc3 {[%emt 0:00:00]} Bg7 {[%emt 0:00:00]} 4. e4 {[%emt 0:00:00]} d6 {[%emt 0:00:05]} 5. f3 {[%emt 0:00:19]} O-O {[%emt 0:00:45]} 6. Be3 {[%emt 0:00:30]} Nbd7 {[%emt 0:01:05]} 7. Nh3 {[%emt 0:00:30]} c5 {[%emt 0:02:41]} 8. d5 {[%emt 0:00:24]} Ne5 {[%emt 0:07:10]} 9. Nf2 {[%emt 0:01:00]} e6 {[%emt 0:09:52]} 10. Be2 {[%emt 0:07:55]} Qe7 {[%emt 0:03:54]} 11. Qd2 {[%emt 0:00:59]} exd5 {[%emt 0:15:51]} 12. cxd5 {[%emt 0:01:51]} a6 {[%emt 0:02:14]} 13. a4 {[%emt 0:01:26]} Nh5 {[%emt 0:07:08]} 14. f4 {[%emt 0:05:50]} Nd7 {[%emt 0:09:35]} 15. g4 {[%emt 0:00:38]} Nhf6 {[%emt 0:00:50]} 16. h4 {[%emt 0:00:52]} b6 {[%emt 0:02:40]} 17. O-O-O {[%emt 0:04:05]} Bb7 {[%emt 0:07:50]} 18. h5 {[%emt 0:01:51]} *

[Event "DFMMLV 2019"]
[Site "Braunfels"]
[Date "2019.06.22"]
[Round "4.45"]
[White "Goetz, Fenja"]
[Black "Lukas, Anne"]
[Result "0-1"]
[ECO "B78"]
[WhiteElo "1528"]
[BlackElo "1842"]
[Annotator "NA"]
[PlyCount "54"]
[EventDate "2019.06.20"]
[EventType "team-tourn"]
[EventCountry "GER"]
[SourceTitle "playchess.com"]
[Source "ChessBase"]
[SourceQuality "1"]
[WhiteTeam "Hessen 2"]
[BlackTeam "Hessen 1"]
[TimeControl "40/5400+30:1800+30"]

1. e4 {[%emt 0:00:00]} c5 {[%emt 0:00:00]} 2. Nf3 {[%emt 0:00:00]} g6 {[%emt 0:00:00]} 3. d4 {[%emt 0:00:00]} cxd4 {[%emt 0:00:00]} 4. Nxd4 {[%emt 0:00:00]} Bg7 {[%emt 0:00:00]} 5. Nc3 {[%emt 0:00:12]} Nc6 {[%emt 0:00:04]} 6. Be3 {[%emt 0:00:09]} Nf6 {[%emt 0:00:06]} 7. f3 {[%emt 0:00:23]} d6 {[%emt 0:00:05]} 8. Bc4 {[%emt 0:02:46]} O-O {[%emt 0:00:08]} 9. Qd2 {[%emt 0:00:12]} Bd7 {[%emt 0:00:20]} 10. O-O-O {[%emt 0:02:18]} Na5 {[%emt 0:00:11]} 11. Be2 {[%emt 0:01:13]} Rc8 {[%emt 0:00:12]} 12. g4 {[%emt 0:00:39]} Nc4 {[%emt 0:00:12]} 13. Bxc4 {[%emt 0:02:12]} Rxc4 {[%emt 0:00:07]} 14. h4 {[%emt 0:01:06]} Qa5 {[%emt 0:02:05]} 15. Nb3 {[%emt 0:01:59]} Qc7 {[%emt 0:01:45]} 16. h5 {[%emt 0:04:07]} b5 {[%emt 0:01:28]} 17. Kb1 {[%emt 0:01:59]} b4 {[%emt 0:01:03]} 18. Ne2 {[%emt 0:00:24]} Rc8 {[%emt 0:02:16]} 19. Rc1 {[%emt 0:02:42]} a5 {[%emt 0:03:05]} 20. hxg6 {[%emt 0:09:01]} fxg6 {[%emt 0:00:17]} 21. g5 {[%emt 0:00:31]} Nh5 {[%emt 0:00:49]} 22. Nf4 {[%emt 0:06:54]} Nxf4 {[%emt 0:00:08]} 23. Bxf4 {[%emt 0:00:11]} a4 {[%emt 0:00:05]} 24. Na1 {[%emt 0:00:14]} a3 {[%emt 0:01:23]} 25. b3 {[%emt 0:00:26]} Rd4 {[%emt 0:06:27]} 26. Qh2 {[%emt 0:00:33]} Qc3 {[%emt 0:00:04]} 27. Qxh7+ {[%emt 0:01:12]} Kf8 {[%emt 0:00:05]} 0-1

[Event "DFMMLV 2019"]
[Site "Braunfels"]
[Date "2019.06.22"]
[Round "4.46"]
[White "Frank, Michelle Viviane"]
[Black "von Beckh, Frieda"]
[Result "1/2-1/2"]
[ECO "D51"]
[WhiteElo "1915"]
[BlackElo "1465"]
[Annotator "NA"]
[PlyCount "140"]
[EventDate "2019.06.20"]
[EventType "team-tourn"]
[EventCountry "GER"]
[SourceTitle "playchess.com"]
[Source "ChessBase"]
[SourceQuality "1"]
[WhiteTeam "Hessen 1"]
[BlackTeam "Hessen 2"]
[TimeControl "40/5400+30:1800+30"]

1. d4 {[%emt 0:00:00]} d5 {[%emt 0:00:00]} 2. c4 {[%emt 0:00:00]} e6 {[%emt 0:00:00]} 3. Nc3 {[%emt 0:00:00]} Nf6 {[%emt 0:00:00]} 4. Bg5 {[%emt 0:00:06]} Nbd7 {[%emt 0:00:01]} 5. cxd5 {[%emt 0:00:14]} exd5 {[%emt 0:00:08]} 6. Qc2 {[%emt 0:00:10]} Nb6 {[%emt 0:01:10]} 7. e3 {[%emt 0:00:15]} Bb4 {[%emt 0:00:47]} 8. Bd3 {[%emt 0:00:18]} h6 {[%emt 0:00:14]} 9. Bh4 {[%emt 0:00:11]} Be6 {[%emt 0:00:45]} 10. Nge2 {[%emt 0:00:24]} O-O {[%emt 0:00:42]} 11. Nf4 {[%emt 0:00:22]} Bd7 {[%emt 0:01:20]} 12. Nh5 {[%emt 0:00:58]} Be7 {[%emt 0:00:56]} 13. Bxf6 {[%emt 0:00:51]} Bxf6 {[%emt 0:00:18]} 14. Bf5 {[%emt 0:00:25]} Bxf5 {[%emt 0:01:51]} 15. Qxf5 {[%emt 0:00:19]} Bg5 {[%emt 0:01:09]} 16. Qc2 {[%emt 0:01:20]} Re8 {[%emt 0:02:24]} 17. O-O {[%emt 0:01:02]} Qd7 {[%emt 0:03:18]} 18. Ng3 {[%emt 0:00:22]} Qc6 {[%emt 0:03:32]} 19. Rac1 {[%emt 0:00:55]} a5 {[%emt 0:01:54]} 20. Qe2 {[%emt 0:01:16]} Qc4 {[%emt 0:02:44]} 21. Qg4 {[%emt 0:00:40]} Qb4 {[%emt 0:02:51]} 22. f4 {[%emt 0:00:47]} Bf6 {[%emt 0:01:06]} 23. Nh5 {[%emt 0:00:11]} Re6 {[%emt 0:00:50]} 24. f5 {[%emt 0:00:58]} Rd6 {[%emt 0:01:05]} 25. Nxg7 {[%emt 0:03:22]} Bg5 {[%emt 0:01:33]} 26. Nh5 {[%emt 0:00:27]} Kh8 {[%emt 0:00:31]} 27. Nd1 {[%emt 0:06:53]} Rg8 {[%emt 0:02:09]} 28. Qe2 {[%emt 0:01:19]} Nc4 {[%emt 0:03:12]} 29. Rc3 {[%emt 0:03:53]} a4 {[%emt 0:03:54]} 30. b3 {[%emt 0:00:48]} axb3 31. axb3 {[%emt 0:00:05]} Nxe3 {[%emt 0:03:54]} 32. Rxe3 {[%emt 0:00:10]} Qxd4 {[%emt 0:00:17]} 33. Kh1 {[%emt 0:00:33]} Bxe3 {[%emt 0:01:00]} 34. Qxe3 {[%emt 0:00:25]} Qxe3 {[%emt 0:01:48]} 35. Nxe3 {[%emt 0:00:05]} d4 {[%emt 0:01:09]} 36. Nc4 {[%emt 0:00:18]} Ra6 {[%emt 0:02:55]} 37. Ne5 {[%emt 0:01:03]} Rf8 {[%emt 0:01:31]} 38. g4 {[%emt 0:00:22]} Rd6 {[%emt 0:01:07]} 39. Nc4 {[%emt 0:01:22]} Rdd8 {[%emt 0:01:27]} 40. Nf4 {[%emt 0:00:29]} Rfe8 {[%emt 0:01:29]} 41. Nd3 {[%emt 0:32:57]} c5 {[%emt 0:35:15]} 42. Nxc5 {[%emt 0:00:24]} d3 {[%emt 0:00:37]} 43. Rd1 {[%emt 0:00:13]} d2 {[%emt 0:00:26]} 44. Rxd2 {[%emt 0:13:49]} Rxd2 {[%emt 0:01:12]} 45. Nxd2 {[%emt 0:00:13]} Re1+ {[%emt 0:00:06]} 46. Kg2 {[%emt 0:00:13]} Re2+ {[%emt 0:00:09]} 47. Kg3 {[%emt 0:00:04]} Rxd2 {[%emt 0:00:10]} 48. Nxb7 {[%emt 0:00:09]} Rd3+ {[%emt 0:00:15]} 49. Kf4 {[%emt 0:00:12]} Rxb3 {[%emt 0:00:07]} 50. Nd6 {[%emt 0:00:24]} Kg7 {[%emt 0:00:20]} 51. Ne4 {[%emt 0:00:06]} Rh3 {[%emt 0:01:49]} 52. Nf2 {[%emt 0:00:40]} Rxh2 {[%emt 0:01:36]} 53. Kg3 {[%emt 0:00:06]} Rxf2 {[%emt 0:00:06]} 54. Kxf2 {[%emt 0:00:03]} Kf6 {[%emt 0:00:18]} 55. Kg3 {[%emt 0:01:01]} Kg5 {[%emt 0:00:17]} 56. Kf3 {[%emt 0:01:11]} h5 {[%emt 0:00:58]} 57. gxh5 {[%emt 0:00:05]} Kxh5 {[%emt 0:00:09]} 58. Ke4 {[%emt 0:03:24]} Kg4 {[%emt 0:01:55]} 59. f6 {[%emt 0:07:30]} Kg5 60. Kf3 {[%emt 0:00:17]} Kxf6 {[%emt 0:00:40]} 61. Kf4 {[%emt 0:01:00]} Ke6 {[%emt 0:00:20]} 62. Ke4 {[%emt 0:00:09]} f5+ {[%emt 0:00:07]} 63. Kf3 {[%emt 0:00:43]} Ke5 {[%emt 0:00:32]} 64. Ke3 {[%emt 0:00:04]} f4+ {[%emt 0:00:08]} 65. Kf3 {[%emt 0:00:23]} Kf5 {[%emt 0:00:07]} 66. Kf2 {[%emt 0:00:10]} Ke4 {[%emt 0:00:05]} 67. Ke2 f3+ 68. Kf1 {[%emt 0:01:03]} Ke3 {[%emt 0:00:44]} 69. Ke1 {[%emt 0:00:06]} f2+ {[%emt 0:00:09]} 70. Kf1 {[%emt 0:00:04]} Kf3 {[%emt 0:00:04]} 1/2-1/2

[Event "DFMMLV 2019"]
[Site "Braunfels"]
[Date "2019.06.22"]
[Round "4.47"]
[White "Goetz, Fenja"]
[Black "Pralle, Katharina"]
[Result "*"]
[ECO "D00"]
[WhiteElo "1528"]
[BlackElo "1971"]
[Annotator "NA"]
[PlyCount "20"]
[EventDate "2019.06.20"]
[EventType "team-tourn"]
[EventCountry "GER"]
[SourceTitle "playchess.com"]
[Source "ChessBase"]
[SourceQuality "1"]
[WhiteTeam "Hessen 2"]
[BlackTeam "Hessen 1"]
[TimeControl "40/5400+30:1800+30"]

1. d4 {[%emt 0:00:00]} d5 {[%emt 0:00:00]} 2. Bf4 {[%emt 0:00:00]} Nf6 {[%emt 0:00:00]} 3. e3 {[%emt 0:00:00]} e6 {[%emt 0:00:01]} 4. c4 {[%emt 0:00:00]} Nbd7 {[%emt 0:00:26]} 5. Nc3 {[%emt 0:01:34]} c6 {[%emt 0:00:05]} 6. Nf3 {[%emt 0:01:07]} Be7 {[%emt 0:00:43]} 7. Be2 {[%emt 0:01:48]} dxc4 {[%emt 0:01:21]} 8. Bxc4 {[%emt 0:01:50]} b5 {[%emt 0:00:07]} 9. Bd3 {[%emt 0:02:22]} a6 {[%emt 0:00:10]} 10. O-O {[%emt 0:02:00]} Bb7 {[%emt 0:00:31]} *